bitfinex/quotes_BTCUSD_20240729
["timestamp","ask_amount","ask_price","bid_price","bid_amount"]
[1722252168308,0.002,69917.0,69912.0,0.0827]
[1722252168466,0.002,69917.0,69916.0,0.223]
[1722252168652,0.472,69927.0,69916.0,0.223]
[1722252168653,0.472,69927.0,69918.0,0.0781]
[1722252168848,0.23773059,69926.0,69920.0,0.0814]
[1722252169059,0.11441,69924.0,69920.0,0.0814]
[1722252169261,0.00891762,69923.0,69920.0,0.0814]
[1722252169511,0.00810647,69923.0,69920.0,0.0814]
[1722252169754,0.00810647,69923.0,69920.0,0.0784]
[1722252169936,0.114409,69925.0,69920.0,0.0784]
[1722252170089,0.02244793,69923.0,69920.0,0.0784]
[1722252170296,0.002,69921.0,69920.0,0.0784]
[1722252170505,0.02244793,69923.0,69920.0,0.0784]
[1722252170706,0.01009536,69921.0,69920.0,0.0784]
[1722252170952,0.002,69921.0,69920.0,0.0784]
[1722252171126,0.01009536,69921.0,69920.0,0.0784]
[1722252171321,0.002,69921.0,69920.0,0.0784]
[1722252171523,0.01009536,69921.0,69920.0,0.0784]
[1722252171747,0.002,69921.0,69920.0,0.0784]
[1722252172447,0.01009536,69921.0,69920.0,0.0784]
[1722252174991,0.01209536,69921.0,69920.0,0.0784]
[1722252175194,0.07766425,69921.0,69920.0,0.0784]
[1722252176074,0.002,69912.0,69911.0,0.14]
[1722252176338,0.002,69910.0,69909.0,0.008855]
[1722252176556,0.345297,69910.0,69909.0,0.008855]
[1722252176751,0.35327334,69910.0,69909.0,0.008855]
[1722252176950,0.36219299,69910.0,69909.0,0.008855]
[1722252177405,0.13332796,69910.0,69909.0,0.008855]
[1722252177639,0.38464461,69910.0,69909.0,0.008855]
[1722252177845,0.45426447,69910.0,69909.0,0.008855]
[1722252178048,0.43181282,69910.0,69909.0,0.008855]
[1722252178444,0.43181282,69910.0,69909.0,0.018855]
[1722252178445,0.35327334,69910.0,69909.0,0.018855]
[1722252178675,0.36219296,69910.0,69909.0,0.018855]
[1722252180744,0.01889596,69910.0,69909.0,0.018855]
[1722252180946,0.03242791,69910.0,69909.0,0.018855]
[1722252181364,0.01889554,69910.0,69909.0,0.018855]
[1722252181558,0.00997634,69910.0,69909.0,0.018855]
[1722252181876,0.00797634,69910.0,69909.0,0.018855]
[1722252182099,0.00797634,69910.0,69909.0,0.156155]
[1722252182305,0.002,69914.0,69909.0,0.156155]
[1722252182886,0.00995405,69913.0,69909.0,0.156155]
[1722252184224,0.00995405,69913.0,69911.0,0.009]
[1722252184427,0.03240434,69913.0,69911.0,0.009]
[1722252184642,0.03240434,69913.0,69909.0,0.156155]
[1722252184842,0.03240434,69913.0,69909.0,0.146155]
[1722252185043,0.03240434,69913.0,69909.0,0.154155]
[1722252185529,0.03240434,69913.0,69909.0,0.160155]
[1722252185758,0.03040434,69913.0,69909.0,0.160155]
[1722252185892,0.03040434,69913.0,69910.0,0.1416]
[1722252186090,0.03040434,69913.0,69911.0,0.0629]
[1722252186091,0.02245029,69913.0,69911.0,0.0629]
[1722252186323,0.02245029,69913.0,69911.0,0.1416]
[1722252186478,0.02245029,69913.0,69911.0,0.25603]
[1722252186833,0.002,69917.0,69911.0,0.1416]
[1722252187067,0.00885469,69923.0,69911.0,0.1416]
[1722252187068,0.0109183,69916.0,69911.0,0.1416]
[1722252187270,0.002,69912.0,69911.0,0.1416]
[1722252187485,0.002,69913.0,69911.0,0.1416]
[1722252187715,0.00798725,69912.0,69911.0,0.1416]
[1722252188112,0.002,69913.0,69911.0,0.1416]
[1722252188313,0.00798725,69912.0,69911.0,0.1416]
[1722252188471,0.00998725,69912.0,69911.0,0.1416]
[1722252189273,0.01890558,69912.0,69911.0,0.1486]
[1722252189474,0.01091833,69912.0,69911.0,0.1486]
[1722252189905,0.03336805,69912.0,69911.0,0.1486]
[1722252190257,0.0413553,69912.0,69911.0,0.1486]
[1722252190462,0.03243697,69912.0,69911.0,0.1416]
[1722252190665,0.03243697,69912.0,69911.0,0.1496]
[1722252190666,0.04135531,69912.0,69911.0,0.1496]
[1722252191046,0.04135531,69912.0,69911.0,0.1416]
[1722252191446,0.04135531,69912.0,69911.0,0.1506]
[1722252191447,0.03935531,69912.0,69911.0,0.1506]
[1722252192280,0.04135531,69912.0,69911.0,0.1506]
[1722252192524,0.03935531,69912.0,69911.0,0.1506]
[1722252193253,0.03136806,69912.0,69911.0,0.1506]
[1722252193654,0.02244972,69912.0,69911.0,0.1506]
[1722252194301,0.02244972,69912.0,69911.0,0.1576]
[1722252195078,0.002,69917.0,69911.0,0.1496]
[1722252195321,0.00891796,69916.0,69911.0,0.1496]
[1722252195625,0.00891796,69916.0,69911.0,0.272031]
[1722252196353,0.00891796,69916.0,69911.0,0.264031]
[1722252196750,0.00891796,69916.0,69915.0,0.114424]
[1722252196876,0.002,69920.0,69916.0,0.0757]
[1722252197080,0.00891732,69919.0,69916.0,0.0757]
[1722252197311,0.472,69924.0,69916.0,0.0757]
[1722252197483,0.472,69924.0,69917.0,0.0636]
[1722252197484,0.00891709,69923.0,69917.0,0.0636]
[1722252197915,0.00891709,69922.0,69917.0,0.0636]
[1722252198256,0.002,69920.0,69917.0,0.0636]
[1722252198981,0.002,69918.0,69917.0,0.0636]
[1722252199108,0.01091746,69918.0,69917.0,0.0636]
[1722252199510,0.00891746,69918.0,69917.0,0.0636]
[1722252199752,0.01091746,69918.0,69917.0,0.0636]
[1722252199983,0.01091746,69918.0,69917.0,0.0696]
[1722252200390,0.002,69918.0,69917.0,0.0736]
[1722252200567,0.0089176,69922.0,69917.0,0.0736]
[1722252200785,0.002,69919.0,69917.0,0.0696]
[1722252200970,0.00891761,69918.0,69917.0,0.0786]
[1722252201719,0.03136554,69918.0,69917.0,0.0786]
[1722252202031,0.03336554,69918.0,69917.0,0.0696]
[1722252202222,0.03336554,69918.0,69917.0,0.0776]
[1722252202827,0.01091761,69918.0,69917.0,0.0776]
[1722252203275,0.00891761,69918.0,69917.0,0.0776]
[1722252203432,0.002,69918.0,69917.0,0.0776]
[1722252203630,0.00891757,69918.0,69917.0,0.0776]
[1722252204040,0.00975757,69918.0,69917.0,0.0776]
[1722252204641,0.00975757,69918.0,69917.0,0.0696]
[1722252205106,0.00975757,69918.0,69917.0,0.0806]
[1722252205811,0.00975757,69918.0,69917.0,0.0746]
[1722252206033,0.03220553,69918.0,69917.0,0.0746]
[1722252206985,0.02328796,69918.0,69917.0,0.0816]
[1722252207561,0.03100197,69918.0,69917.0,0.0816]
[1722252207926,0.03100197,69918.0,69917.0,0.0746]
[1722252208126,0.03300197,69918.0,69917.0,0.011]
[1722252208314,0.04191957,69918.0,69917.0,0.011]
[1722252208514,0.04191947,69918.0,69917.0,0.011]
[1722252209209,0.04191947,69918.0,69917.0,0.29705]
[1722252209412,0.04403891,69918.0,69917.0,0.29705]
[1722252210150,0.03312141,69918.0,69917.0,0.29705]
[1722252210533,0.04403885,69918.0,69917.0,0.29705]
[1722252210734,0.03312141,69918.0,69917.0,0.29705]
[1722252210940,0.03512141,69918.0,69917.0,0.29705]
[1722252211135,0.03312141,69918.0,69917.0,0.29705]
[1722252211757,0.02328796,69918.0,69917.0,0.29705]
[1722252212371,0.02328796,69918.0,69917.0,0.28605]
[1722252213996,0.02328796,69918.0,69917.0,0.29705]
[1722252214377,0.02328796,69918.0,69917.0,0.411471]
[1722252214585,0.02328796,69918.0,69917.0,0.29705]
[1722252215932,0.00084,69918.0,69917.0,0.29705]
[1722252216230,0.00084,69918.0,69917.0,0.28605]
[1722252216564,0.00084,69918.0,69917.0,0.29705]
[1722252216891,0.00084,69918.0,69917.0,0.29505]
[1722252217079,0.00084,69918.0,69917.0,0.421471]
[1722252217271,0.00084,69918.0,69917.0,0.412471]
[1722252217569,0.00084,69918.0,69917.0,0.38415]
[1722252218067,0.02328747,69918.0,69917.0,0.790413]
[1722252218266,0.02328747,69918.0,69917.0,0.561571]
[1722252218681,0.02328747,69918.0,69917.0,1.019255]
[1722252219399,0.02328747,69918.0,69917.0,1.44119639]
[1722252219581,0.00084,69918.0,69917.0,1.64119639]
[1722252219820,0.00084,69918.0,69917.0,1.66419639]
[1722252220028,0.00084,69918.0,69917.0,1.78305996]
[1722252220440,0.00084,69918.0,69917.0,1.66419639]
[1722252220639,0.00084,69918.0,69917.0,1.76105744]
[1722252220781,0.00084,69918.0,69917.0,1.77505744]
[1722252220989,0.00084,69918.0,69917.0,1.78905744]
[1722252221609,0.00084,69918.0,69917.0,1.77505744]
[1722252221807,0.00084,69918.0,69917.0,1.78905744]
[1722252222225,0.00084,69918.0,69917.0,1.67019639]
[1722252222631,0.02328278,69918.0,69917.0,1.67019639]
[1722252223979,0.00084,69918.0,69917.0,1.89903839]
[1722252224589,0.00084,69918.0,69917.0,1.88503839]
[1722252224993,0.002,69944.0,69938.0,0.228773]
[1722252225113,0.00891462,69943.0,69942.0,0.0827]
[1722252225311,0.0036,69945.0,69942.0,0.0827]
[1722252225550,0.00891457,69944.0,69942.0,0.0827]
[1722252225749,0.01734598,69944.0,69942.0,0.36865]
[1722252225974,0.0016,69945.0,69942.0,0.36865]
[1722252226129,0.0036,69945.0,69942.0,0.36865]
[1722252226331,0.0016,69945.0,69942.0,0.36865]
[1722252226725,0.00843141,69944.0,69942.0,0.36865]
[1722252227347,0.03087278,69944.0,69942.0,0.36865]
[1722252227548,0.00843141,69944.0,69942.0,0.36865]
[1722252227930,0.00843141,69944.0,69942.0,0.37365]
[1722252228382,0.0036,69945.0,69942.0,0.37365]
[1722252228532,0.0036,69945.0,69942.0,0.37465]
[1722252228731,0.00843141,69944.0,69942.0,0.37465]
[1722252229202,0.0036,69945.0,69942.0,0.37465]
[1722252229403,0.0016,69945.0,69942.0,0.37465]
[1722252229536,0.00843141,69944.0,69942.0,0.36865]
[1722252229742,0.0016,69945.0,69942.0,0.37365]
[1722252230217,0.00843141,69944.0,69942.0,0.37365]
[1722252230569,0.002,69945.0,69942.0,0.37365]
[1722252230793,0.00816851,69943.0,69942.0,0.37365]
[1722252230999,0.02244149,69944.0,69942.0,0.37365]
[1722252231198,0.00816851,69943.0,69942.0,0.37765]
[1722252231398,0.00816851,69943.0,69942.0,0.37265]
[1722252232501,0.002,69945.0,69942.0,0.37265]
[1722252232502,0.002,69945.0,69942.0,0.37865]
[1722252232704,0.002,69945.0,69942.0,0.29595]
[1722252232918,0.00819817,69944.0,69942.0,0.29595]
[1722252233123,0.002,69943.0,69942.0,0.30295]
[1722252233541,0.01021278,69943.0,69942.0,0.30295]
[1722252234183,0.15961278,69943.0,69942.0,0.30295]
[1722252234665,0.16852783,69943.0,69942.0,0.30295]
[1722252234901,0.28290583,69943.0,69942.0,0.30295]
[1722252235286,0.16852783,69943.0,69942.0,0.30295]
[1722252235461,0.19097006,69943.0,69942.0,0.29895]
[1722252235885,0.19097006,69943.0,69942.0,0.28595]
[1722252236266,0.19097006,69943.0,69942.0,0.29195]
[1722252236447,0.16852783,69943.0,69942.0,0.28595]
[1722252236650,0.16852783,69943.0,69942.0,0.29295]
[1722252237548,0.00821278,69943.0,69942.0,0.29295]
[1722252237752,0.00821278,69943.0,69942.0,0.37565]
[1722252238086,0.0631,69947.0,69942.0,0.37865]
[1722252238290,0.00818334,69943.0,69942.0,0.37865]
[1722252238498,0.0631,69947.0,69942.0,0.37865]
[1722252238707,0.00818334,69943.0,69942.0,0.37865]
[1722252238912,0.0631,69947.0,69942.0,0.37865]
[1722252239231,0.01018334,69943.0,69942.0,0.29595]
[1722252239436,0.01018334,69943.0,69942.0,0.28895]
[1722252239634,0.002,69943.0,69942.0,0.28795]
[1722252240236,0.01018334,69943.0,69942.0,0.28795]
[1722252240463,0.002,69943.0,69942.0,0.28595]
[1722252240684,0.01018334,69943.0,69942.0,0.28595]
[1722252240903,0.002,69943.0,69942.0,0.29795]
[1722252241131,0.01018334,69943.0,69942.0,0.29795]
[1722252241363,0.002,69943.0,69942.0,0.29795]
[1722252241612,0.01018334,69943.0,69942.0,0.29795]
[1722252241879,0.002,69943.0,69942.0,0.29795]
[1722252242116,0.01018334,69943.0,69942.0,0.37345]
[1722252242363,0.00084,69945.0,69942.0,0.37345]
[1722252242364,0.00284,69945.0,69942.0,0.37345]
[1722252242581,0.00891453,69944.0,69942.0,0.37345]
[1722252243002,0.00818334,69943.0,69942.0,0.37345]
[1722252243354,0.01018334,69943.0,69942.0,0.37345]
[1722252243692,0.01018334,69943.0,69942.0,0.29295]
[1722252243899,0.01018334,69943.0,69942.0,0.29595]
[1722252244179,0.03262536,69943.0,69942.0,0.29595]
[1722252244358,0.01909787,69943.0,69942.0,0.29595]
[1722252244560,0.01909787,69943.0,69942.0,0.29295]
[1722252244992,0.01909787,69943.0,69942.0,0.29795]
[1722252245872,0.01909787,69943.0,69942.0,0.29095]
[1722252246970,0.08189787,69943.0,69942.0,0.29095]
[1722252247253,0.10433989,69943.0,69942.0,0.29095]
[1722252248238,0.10433986,69943.0,69942.0,0.29095]
[1722252248865,0.08189784,69943.0,69942.0,0.29095]
[1722252249936,0.01909784,69943.0,69942.0,0.29095]
[1722252250773,0.0109145,69943.0,69942.0,0.29095]
[1722252251176,0.0089145,69943.0,69942.0,0.29095]
[1722252251530,0.002,69943.0,69942.0,0.29095]
[1722252251669,0.0109145,69943.0,69942.0,0.29095]
[1722252252107,0.03335639,69943.0,69942.0,0.29095]
[1722252252319,0.05574726,69943.0,69942.0,0.29095]
[1722252252558,0.03330537,69943.0,69942.0,0.29095]
[1722252252728,0.03130537,69943.0,69942.0,0.29095]
[1722252252974,0.03330537,69943.0,69942.0,0.29095]
[1722252254072,0.03130537,69943.0,69942.0,0.29095]
[1722252254227,0.03130508,69943.0,69942.0,0.29095]
[1722252254629,0.03130501,69943.0,69942.0,0.29095]
[1722252254961,0.03130501,69943.0,69942.0,0.29195]
[1722252255850,0.05374698,69943.0,69942.0,0.29195]
[1722252256266,0.03130501,69943.0,69942.0,0.29195]
[1722252256645,0.03130501,69943.0,69942.0,0.28595]
[1722252257115,0.03130501,69943.0,69942.0,0.30195]
[1722252257338,0.03630501,69943.0,69942.0,0.29095]
[1722252257528,0.03630501,69943.0,69942.0,0.28595]
[1722252257776,0.03630501,69943.0,69942.0,0.30495]
[1722252257984,0.036305,69943.0,69942.0,0.30495]
[1722252258749,0.038305,69943.0,69942.0,0.30495]
[1722252258950,0.06074697,69943.0,69942.0,0.30495]
[1722252259799,0.05874697,69943.0,69942.0,0.30495]
[1722252261290,0.05874693,69943.0,69942.0,0.30495]
[1722252261731,0.04983284,69943.0,69942.0,0.30495]
[1722252261962,0.05874693,69943.0,69942.0,0.30495]
[1722252262330,0.04983284,69943.0,69942.0,0.30495]
[1722252262534,0.05874693,69943.0,69942.0,0.30495]
[1722252264392,0.03630496,69943.0,69942.0,0.30495]
[1722252266212,0.03630496,69943.0,69942.0,0.64809]
[1722252266415,0.005,69943.0,69942.0,1.06825]
[1722252266614,0.005,69943.0,69942.0,1.29701]
[1722252266818,0.005,69943.0,69942.0,1.62577]
[1722252267020,0.005,69943.0,69942.0,1.50483403]
[1722252267510,0.005,69943.0,69942.0,1.51583403]
[1722252267695,0.02743786,69943.0,69942.0,1.39701]
[1722252267893,0.02743786,69943.0,69942.0,1.38601]
[1722252268129,0.02743786,69943.0,69942.0,1.51883176]
[1722252268303,0.02743786,69943.0,69942.0,1.40001]
[1722252268508,0.02743786,69943.0,69942.0,1.74759209]
[1722252268709,0.02743786,69943.0,69942.0,1.62877]
[1722252269075,0.02743786,69943.0,69942.0,1.84759049]
[1722252269274,0.02743786,69943.0,69942.0,1.99068988]
[1722252269499,0.005,69943.0,69942.0,1.99068988]
[1722252270418,0.005,69943.0,69942.0,2.01368988]
[1722252270560,0.005,69943.0,69942.0,2.00568988]
[1722252271025,0.005,69943.0,69942.0,1.88686939]
[1722252271235,0.005,69943.0,69942.0,1.91368251]
[1722252271402,0.005,69943.0,69942.0,1.99968251]
[1722252271599,0.005,69943.0,69942.0,1.99968212]
[1722252271801,0.005,69943.0,69942.0,2.01368212]
[1722252272189,0.005,69943.0,69942.0,2.09638212]
[1722252272774,0.02743701,69943.0,69942.0,1.97756939]
[1722252273193,0.02743701,69943.0,69942.0,2.09638214]
[1722252273467,0.02743701,69943.0,69942.0,1.89486939]
[1722252273732,0.02743701,69943.0,69942.0,1.87756939]
[1722252273963,0.02743701,69943.0,69942.0,1.84656939]
[1722252274176,0.005,69943.0,69942.0,1.84656939]
[1722252274382,0.005,69943.0,69942.0,1.94656939]
[1722252274817,0.005,69943.0,69942.0,1.96956939]
[1722252275023,0.005,69943.0,69942.0,1.86956939]
[1722252275228,0.005,69943.0,69942.0,1.96956939]
[1722252275789,0.005,69943.0,69942.0,1.86956939]
[1722252276970,0.005,69943.0,69942.0,0.29995]
[1722252276971,0.0877,69943.0,69942.0,0.29995]
[1722252277110,0.16279775,69943.0,69942.0,0.29995]
[1722252277314,0.08009775,69943.0,69942.0,0.29995]
[1722252277497,0.08745855,69943.0,69942.0,0.29995]
[1722252277697,0.08901275,69943.0,69942.0,0.29995]
[1722252277898,0.08901275,69943.0,69942.0,0.31395]
[1722252278309,0.08901275,69943.0,69942.0,0.29995]
[1722252278514,0.08701275,69943.0,69942.0,0.29995]
[1722252278737,0.08901275,69943.0,69942.0,0.28595]
[1722252278962,0.08009775,69943.0,69942.0,0.28595]
[1722252279187,0.007,69943.0,69942.0,0.28595]
[1722252279397,0.0085542,69943.0,69942.0,0.28595]
[1722252279840,0.03099419,69943.0,69942.0,0.28595]
[1722252280934,0.01746909,69943.0,69942.0,0.28595]
[1722252281141,0.0085542,69943.0,69942.0,0.28595]
[1722252281347,0.01746905,69943.0,69942.0,0.28595]
[1722252281556,0.0085542,69943.0,69942.0,0.28595]
[1722252281754,0.01746905,69943.0,69942.0,0.28595]
[1722252282011,0.01591491,69943.0,69942.0,0.28595]
[1722252282213,0.00828213,69943.0,69942.0,0.28595]
[1722252283315,0.00784717,69943.0,69942.0,0.28595]
[1722252283532,0.00584717,69943.0,69942.0,0.28595]
[1722252283702,0.005,69943.0,69942.0,0.28595]
[1722252284122,0.02744045,69943.0,69942.0,0.28595]
[1722252285316,0.005,69943.0,69942.0,0.28595]
[1722252286141,0.005,69943.0,69942.0,0.40033]
[1722252286349,0.005,69943.0,69942.0,0.62909]
[1722252286925,0.0066,69943.0,69942.0,0.62909]
[1722252287138,0.0066,69943.0,69942.0,0.63609]
[1722252287787,0.0066,69943.0,69942.0,0.64109]
[1722252288549,0.02903971,69943.0,69942.0,0.64109]
[1722252290196,0.0066,69943.0,69942.0,0.64109]
[1722252291217,0.0066,69943.0,69942.0,0.41233]
[1722252292204,0.0086,69943.0,69942.0,0.41233]
[1722252292590,0.0066,69943.0,69942.0,0.64109]
[1722252293433,0.02903971,69943.0,69942.0,0.64109]
[1722252293783,0.02903971,69943.0,69942.0,0.63609]
[1722252293784,0.02403971,69943.0,69942.0,0.63609]
[1722252293910,0.0016,69943.0,69942.0,0.29295]
[1722252294791,0.0036,69943.0,69942.0,0.29295]
[1722252296685,0.0016,69943.0,69942.0,0.29295]
[1722252296927,0.0036,69943.0,69942.0,0.29295]
[1722252297161,0.02603947,69943.0,69942.0,0.29295]
[1722252298736,0.02403947,69943.0,69942.0,0.40733]
[1722252298962,0.02403947,69943.0,69942.0,0.29295]
[1722252299188,0.02403947,69943.0,69942.0,0.63609]
[1722252299852,0.02403947,69943.0,69942.0,0.40733]
[1722252300084,0.02403947,69943.0,69942.0,0.29295]
[1722252300550,0.02403947,69943.0,69942.0,0.40733]
[1722252301274,0.02403947,69943.0,69942.0,0.48993]
[1722252303182,0.02487947,69943.0,69942.0,0.48993]
[1722252304010,0.02487947,69943.0,69942.0,0.37555]
[1722252304263,0.02687947,69943.0,69942.0,0.29295]
[1722252304569,0.02687947,69943.0,69942.0,0.48993]
[1722252306205,0.00444,69943.0,69942.0,0.48993]
[1722252306699,0.00244,69943.0,69942.0,0.48993]
[1722252306900,0.00244,69943.0,69942.0,0.94245]
[1722252307121,0.00244,69943.0,69942.0,0.71369]
[1722252308013,0.00244,69943.0,69942.0,0.70669]
[1722252308380,0.00244,69943.0,69942.0,0.71469]
[1722252308580,0.00244,69943.0,69942.0,0.71169]
[1722252309001,0.00444,69943.0,69942.0,0.36355]
[1722252309167,0.02487948,69943.0,69942.0,0.70669]
[1722252309365,0.02487948,69943.0,69942.0,0.71669]
[1722252309605,0.00244,69943.0,69942.0,0.71669]
[1722252312237,0.00444,69943.0,69942.0,0.48793]
[1722252312788,0.00444,69943.0,69942.0,0.37355]
[1722252312789,0.02687956,69943.0,69942.0,0.37355]
[1722252312982,0.02687956,69943.0,69942.0,0.38655]
[1722252313472,0.02687956,69943.0,69942.0,0.30395]
[1722252313622,0.03579337,69943.0,69942.0,0.30395]
[1722252316029,0.11309337,69943.0,69942.0,0.30395]
[1722252316444,0.28817137,69943.0,69942.0,0.30395]
[1722252316742,0.1961841,69943.0,69942.0,0.30395]
[1722252316945,0.3105621,69943.0,69942.0,0.30395]
[1722252317150,0.1961841,69943.0,69942.0,0.30395]
[1722252317349,0.69453537,69943.0,69942.0,0.30395]
[1722252317749,0.58949581,69943.0,69942.0,0.30395]
[1722252318033,0.51687954,69943.0,69942.0,0.30395]
[1722252318887,0.51688098,69943.0,69942.0,0.30395]
[1722252319034,0.74563798,69943.0,69942.0,0.30395]
[1722252320585,0.75431676,69943.0,69942.0,0.30395]
[1722252321060,0.77675766,69943.0,69942.0,0.30395]
[1722252321489,0.75431676,69943.0,69942.0,0.30395]
[1722252321692,0.80368055,69943.0,69942.0,0.30395]
[1722252321912,0.7947653,69943.0,69942.0,0.30395]
[1722252322053,0.8036806,69943.0,69942.0,0.30395]
[1722252322452,0.8805706,69943.0,69942.0,0.30395]
[1722252322677,0.88948591,69943.0,69942.0,0.30395]
[1722252323307,0.80368061,69943.0,69942.0,0.30395]
[1722252323506,0.57492361,69943.0,69942.0,0.30395]
[1722252324109,0.52555982,69943.0,69942.0,0.30395]
[1722252324325,0.54800107,69943.0,69942.0,0.30395]
[1722252325167,0.53908576,69943.0,69942.0,0.30395]
[1722252325322,0.54800107,69943.0,69942.0,0.30395]
[1722252325525,1.00551507,69943.0,69942.0,0.30395]
[1722252325788,1.14861446,69943.0,69942.0,0.30395]
[1722252326127,1.29809452,69943.0,69942.0,0.30395]
[1722252326368,1.24809452,69943.0,69942.0,0.30395]
[1722252326968,1.10499435,69943.0,69942.0,0.30395]
[1722252327175,0.82675807,69943.0,69942.0,0.30395]
[1722252327581,1.05551507,69943.0,69942.0,0.30395]
[1722252328073,1.05551507,69943.0,69942.0,0.29395]
[1722252328512,0.83391541,69943.0,69942.0,0.28095]
[1722252328915,1.04023116,69943.0,69942.0,0.28095]
[1722252329092,1.1548509,69943.0,69942.0,0.28095]
[1722252330698,0.9260939,69943.0,69942.0,0.28095]
[1722252331238,0.76147416,69943.0,69942.0,0.28895]
[1722252331683,0.76147416,69943.0,69942.0,0.28095]
[1722252331886,0.76247416,69943.0,69942.0,0.28095]
[1722252332044,0.76247416,69943.0,69942.0,0.28195]
[1722252332386,0.30472526,69943.0,69942.0,0.28195]
[1722252332543,0.30472526,69943.0,69942.0,0.28095]
[1722252332760,0.19034726,69943.0,69942.0,0.28095]
[1722252332964,0.04366848,69943.0,69942.0,0.28095]
[1722252333382,0.02127775,69943.0,69942.0,0.28095]
[1722252333591,0.04367015,69943.0,69942.0,0.28095]
[1722252334629,0.02127775,69943.0,69942.0,0.28095]
[1722252335087,0.02094231,69943.0,69942.0,0.42885]
[1722252335778,0.02094231,69943.0,69942.0,0.36455]
[1722252335973,0.04338354,69943.0,69942.0,0.36455]
[1722252336452,0.04338354,69943.0,69942.0,0.28195]
[1722252336654,0.41474054,69943.0,69942.0,0.28195]
[1722252336997,0.83145851,69943.0,69942.0,0.28195]
[1722252337169,0.85385117,69943.0,69942.0,0.28195]
[1722252338155,0.85344602,69943.0,69942.0,0.28195]
[1722252338367,1.36096002,69943.0,69942.0,0.28195]
[1722252338562,1.41096002,69943.0,69942.0,0.28195]
[1722252338763,1.50948967,69943.0,69942.0,0.28195]
[1722252339343,1.18073267,69943.0,69942.0,0.28195]
[1722252339949,1.28073267,69943.0,69942.0,0.28195]
[1722252340568,1.50948967,69943.0,69942.0,0.28195]
[1722252341366,1.50948967,69943.0,69942.0,0.282874]
[1722252341367,1.43851879,69943.0,69942.0,0.282874]
[1722252341531,1.48711512,69943.0,69942.0,0.282874]
[1722252341934,1.48711518,69943.0,69942.0,0.282874]
[1722252342137,1.25835818,69943.0,69942.0,0.282874]
[1722252343046,1.76091518,69943.0,69942.0,0.282874]
[1722252343443,1.88944642,69943.0,69942.0,0.282874]
[1722252344040,1.88944642,69943.0,69942.0,0.427974]
[1722252344041,0.1478461,69943.0,69942.0,0.427974]
[1722252344242,0.01837761,69943.0,69942.0,0.427974]
[1722252344468,0.02788319,69943.0,69942.0,0.426974]
[1722252344671,0.00544,69943.0,69942.0,0.426974]
[1722252345114,0.00544,69943.0,69942.0,0.427974]
[1722252345115,0.00944,69943.0,69942.0,0.427974]
[1722252345312,0.00744,69943.0,69942.0,0.427974]
[1722252345649,0.01044,69943.0,69942.0,0.427974]
[1722252345851,0.00544,69943.0,69942.0,0.426974]
[1722252346055,0.00244,69943.0,69942.0,0.426974]
[1722252346427,0.00244,69943.0,69942.0,0.440974]
[1722252346874,0.0115537,69943.0,69942.0,0.440974]
[1722252347492,0.0135537,69943.0,69942.0,0.440974]
[1722252347685,0.00244,69943.0,69942.0,0.440974]
[1722252347893,0.01162062,69943.0,69942.0,0.442974]
[1722252348093,0.02488006,69943.0,69942.0,0.442974]
[1722252349927,0.00244,69943.0,69942.0,0.442974]
[1722252352908,0.0248796,69943.0,69942.0,0.442974]
[1722252353988,0.0268796,69943.0,69942.0,0.442974]
[1722252354128,0.00444,69943.0,69942.0,0.297874]
[1722252354328,0.00244,69943.0,69942.0,0.297874]
[1722252355408,0.00444,69943.0,69942.0,0.297874]
[1722252357235,0.02687973,69943.0,69942.0,0.297874]
[1722252357987,0.01423093,69943.0,69942.0,0.297874]
[1722252358864,0.03662361,69943.0,69942.0,0.297874]
[1722252360055,0.01423093,69943.0,69942.0,0.297874]
[1722252360463,0.01223093,69943.0,69942.0,0.297874]
[1722252360799,0.01241949,69943.0,69942.0,0.297874]
[1722252361229,0.03485878,69943.0,69942.0,0.297874]
[1722252361455,0.03485858,69943.0,69942.0,0.297874]
[1722252361686,0.01241929,69943.0,69942.0,0.297874]
[1722252362195,0.35555429,69943.0,69942.0,0.297874]
[1722252362425,0.68880407,69943.0,69942.0,0.297874]
[1722252362919,1.04249056,69943.0,69942.0,0.297874]
[1722252363144,1.0912279,69943.0,69942.0,0.297874]
[1722252363370,0.98406431,69943.0,69942.0,0.297874]
[1722252363795,0.98406431,69943.0,69942.0,0.295874]
[1722252364016,0.97398178,69943.0,69942.0,0.281874]
[1722252364223,0.98448224,69943.0,69942.0,0.281874]
[1722252364914,1.1284793,69943.0,69942.0,0.281874]
[1722252365117,0.05977473,69943.0,69942.0,0.281874]
[1722252365288,0.15171124,69943.0,69942.0,0.281874]
[1722252365443,0.38046824,69943.0,69942.0,0.281874]
[1722252366062,0.37946824,69943.0,69942.0,0.281874]
[1722252366261,0.37946824,69943.0,69942.0,0.282874]
[1722252366262,0.39366082,69943.0,69942.0,0.282874]
[1722252366446,0.39766082,69943.0,69942.0,0.282874]
[1722252367367,0.16290382,69943.0,69942.0,0.282874]
[1722252367713,0.39366082,69943.0,69942.0,0.282874]
[1722252367917,0.39466082,69943.0,69942.0,0.282874]
[1722252368110,0.38066082,69943.0,69942.0,0.281874]
[1722252368312,0.39466082,69943.0,69942.0,0.282874]
[1722252368516,0.41710162,69943.0,69942.0,0.282874]
[1722252368894,0.71765684,69943.0,69942.0,0.283874]
[1722252369293,0.47489984,69943.0,69942.0,0.281874]
[1722252369499,0.4642068,69943.0,69942.0,0.281874]
[1722252369827,0.47352995,69943.0,69942.0,0.281874]
[1722252370029,0.47452995,69943.0,69942.0,0.281874]
[1722252370377,0.48752995,69943.0,69942.0,0.282874]
[1722252372133,0.46052995,69943.0,69942.0,0.281874]
[1722252372270,0.49697084,69943.0,69942.0,0.282874]
[1722252372494,0.41673182,69943.0,69942.0,0.282874]
[1722252372703,0.38496778,69943.0,69942.0,0.282874]
[1722252372930,0.39432219,69943.0,69942.0,0.282874]
[1722252373390,0.39432209,69943.0,69942.0,0.282874]
[1722252375632,0.16556509,69943.0,69942.0,0.282874]